Cogmind - Beta 10.2 @@@ ROGUE MODE // 2020.12.18 @ 22:05:09 Player: Luigi Panache Result: Destroyed by G-34 Mercenary with Small Laser Performance ------------- Evolutions (0) 0 Regions Visited (1) 200 Robots Destroyed (13) 65 Value Destroyed (421) 421 Prototype IDs (0) 0 Alien Tech Used (0) 0 Bonus (0) 0 TOTAL SCORE: 686 Bonus ------- None Cogmind --------- Core Integrity 0/250 Matter 297/300 Energy 250/250 System Corruption 0% Temperature Cool (6) Movement Treading (160) Location -10/Materials Parts ------- > --- POWER (1) -------- Ion Engine > --- PROPULSION (2) --- Light Treads > --- UTILITY (2) ------ Small Storage Unit > --- WEAPON (2) ------- Assault Rifle > --- INVENTORY (6) ---- Ion Engine High-capacity Matter Pod (200) Medium Laser Grenade Launcher Grenade Launcher Peak State ------------ > --- POWER ------------ Ion Engine > --- PROPULSION ------- Light Treads Light Treads > --- UTILITY ---------- Small Storage Unit > --- WEAPON ----------- EM Pulse Gun EM Pulse Gun > --- INVENTORY -------- Assault Rifle [Rating: 6] Favorites ----------- Power Ion Engine Engine Ion Engine Propulsion Light Treads Treads Light Treads Utility Small Storage Unit Storage Small Storage Unit Weapon EM Pulse Gun Energy Gun EM Pulse Gun Ballistic Gun Assault Rifle Build | -11 -10 ------- Run | Scr Mat Slots Evolved . | . . Power . | . . Propulsion . | . . Utility . | . . Weapon . | . . Parts Attached 8 | 7 1 Power 1 | 1 . Engine 1 | 1 . Core . | . . Reactor . | . . Propulsion 2 | 2 . Treads 2 | 2 . Leg . | . . Wheel . | . . Hover . | . . Flight . | . . Utility 1 | 1 . Device . | . . Storage 1 | 1 . Processor . | . . Hackware . | . . Protection . | . . Artifact . | . . Weapon 4 | 3 1 Energy Gun 2 | 2 . Energy Cannon . | . . Ballistic Gun 2 | 1 1 Ballistic Cannon . | . . Launcher . | . . Special Weapon . | . . Impact Weapon . | . . Slashing Weapon . | . . Piercing Weapon . | . . Special Melee Weapon . | . . Unidentified Prototypes . | . . Parts Lost 3 | . 3 Power . | . . Propulsion 1 | . 1 Utility . | . . Weapon 2 | . 2 Highest Loss Streak 3 | . 3 Average Slot Usage (%) 78 | . 78 Engine 14 | . 14 Treads 24 | . 24 Storage 14 | . 14 Energy Gun 21 | . 21 Ballistic Gun 3 | . 3 Naked Turns . | . . Heaviest Build 13 | 13 13 Greatest Support 40 | 40 40 Greatest Overweight (x) . | . . Average Overweight (x) . | . . Largest Inventory Capacity 6 | 6 6 Average Capacity 5 | 4 6 Most Carried 6 | 2 6 Average Carried 4 | . 5 Final Capacity 6 | 6 6 Final Carried 5 | 2 5 Class Distribution -------------------- 100% | Mutant Dominant Class ---------------- Mutant | -10/Materials Resources | -11 -10 ----------- Run | Scr Mat Matter Collected 501 | 220 281 Remotely . | . . Salvage Created 433 | . 433 Parts 24 | . 24 Haulers Intercepted . | . . Recyclers Shooed . | . . Parts Field Recycled . | . . Retrieved Matter . | . . Parts Self-Destructed . | . . Prevented . | . . Kills | -11 -10 ------- Run | Scr Mat Combat Hostiles Destroyed 9 | . 9 Guns 6 | . 6 AOE 2 | . 2 Classes Destroyed 4 | . 4 Worker 1 | . 1 Operator 2 | . 2 Watcher 1 | . 1 Grunt 9 | . 9 Best Kill Streak 2 | . 2 Combat Bots Only 2 | . 2 Max Kills in Single Turn 1 | . 1 Gunslinging . | . . Exploded 1 | . 1 Melee . | . . Uniques/NPCs Destroyed . | . . Combat | -11 -10 -------- Run | Scr Mat Damage Taken 684 | . 684 Core 253 | . 253 Absorbed by Shields . | . . Core Remaining (%) 100 | 100 . Volleys Fired 45 | . 45 Largest 2 | . 2 Hottest 80 | . 80 Shots Fired 78 | . 78 Gun 78 | . 78 Cannon . | . . Launcher . | . . Special . | . . Kinetic 13 | . 13 Thermal . | . . Explosive . | . . Electromagnetic 65 | . 65 Robot Hit Streak 10 | . 10 Robot Miss Streak 8 | . 8 Penetration Max . | . . Secondary Targets . | . . Shots Hit Robots 54 | . 54 Core Hits 19 | . 19 Critical Hits . | . . Critical Kills . | . . Critical Parts Destroyed . | . . Melee Attacks . | . . Impact . | . . Slashing . | . . Piercing . | . . Sneak Attacks . | . . Combat Hostiles . | . . Follow-up Attacks . | . . Damage Inflicted 1012 | . 1012 Guns 722 | . 722 Cannons . | . . Explosions 290 | . 290 Melee . | . . Ramming . | . . Kinetic 111 | . 111 Thermal 290 | . 290 Explosive . | . . Electromagnetic 611 | . 611 Impact . | . . Slashing . | . . Piercing . | . . Highest Corruption . | . . Average Corruption . | . . Corruption Purged . | . . Overload Shots . | . . Overflow Damage 53 | . 53 Projectiles . | . . Explosions 53 | . 53 Melee . | . . Knockbacks . | . . Impact . | . . Kinetic . | . . Secondary . | . . Self-Inflicted Damage 244 | . 244 Shots 5 | . 5 Rammed . | . . Targets Rammed . | . . Kicked . | . . Crushed . | . . Highest Temperature 264 | . 264 Average Temperature 73 | . 73 Received Heat Transfer 252 | . 252 Siege Activations . | . . Robots Corrupted 1 | . 1 Combat Hostiles 1 | . 1 Parts Fried 3 | . 3 Impact Corruptions . | . . Robots Melted . | . . Combat Hostiles . | . . Parts Melted . | . . Heat Transferred 250 | . 250 Parts Sabotaged . | . . Parts Stolen . | . . Parts Stripped . | . . Power Chain Reactions 4 | . 4 Missiles Intercepted . | . . Alert | -11 -10 ------- Run | Scr Mat Peak Influence 345 | . 345 Initial . | . . Average 117 | . 132 Maximum Alert Level 1 | . 1 Low Security (%) 72 | 100 69 Level 1 27 | . 30 Level 2 . | . . Level 3 . | . . Level 4 . | . . Level 5 . | . . High Security . | . . Max Security . | . . Squads Dispatched 3 | . 3 Investigation 1 | . 1 Extermination . | . . Reinforcement 2 | . 2 Assault . | . . Garrison . | . . Intercept . | . . Construction Impeded . | . . Haulers Reinforced . | . . Stealth | -11 -10 --------- Run | Scr Mat Distress Signals 2 | . 2 Communications Jammed . | . . Distress Signals . | . . Times Spotted 24 | . 24 Peak Tracking Total 4 | . 4 Tactical Retreats 3 | . 3 Traps | -11 -10 ------- Run | Scr Mat Traps Triggered 1 | . 1 Indirectly . | . . Trap Hack Attempts . | . . Triggered . | . . Disarmed . | . . Reprogrammed . | . . Reused . | . . Traps Extracted . | . . Installed . | . . Triggered . | . . Machines | -11 -10 ---------- Run | Scr Mat Machines Disabled 4 | . 4 Max in Single Turn 2 | . 2 Machines Sabotaged . | . . Garrisons Compromised . | . . Overloaded Fab Kills . | . . Fab Network Shutdowns . | . . Hacking | -11 -10 --------- Run | Scr Mat Machines Accessed 4 | . 4 Terminals 4 | . 4 Fabricators . | . . Repair Stations . | . . Recycling Units . | . . Scanalyzers . | . . Garrison Access . | . . Total Hacks 7 | . 7 Successful 3 | . 3 Failed 4 | . 4 Catastrophic 1 | . 1 Database Lockouts . | . . Manual 6 | . 6 Terminals 7 | . 7 Fabricators . | . . Repair Stations . | . . Recycling Units . | . . Scanalyzers . | . . Garrison Access . | . . Terminal Hacks 3 | . 3 Part Schematic 1 | . 1 Terminal Index 1 | . 1 Zone Layout 1 | . 1 Fabricator Hacks . | . . Repair Station Hacks . | . . Recycling Unit Hacks . | . . Scanalyzer . | . . Garrison Access Hacks . | . . Unauthorized Hacks . | . . Terminals . | . . Fabricators . | . . Repair Stations . | . . Recycling Units . | . . Scanalyzers . | . . Garrison Access . | . . Data Cores Recovered . | . . Used . | . . Hacking Detections 3 | . 3 Full Trace Events 1 | . 1 Feedback Events . | . . Feedback Blocked . | . . Robot Schematics Acquired . | . . Robots Built . | . . Matter . | . . Time . | . . Total Robot Build Rating . | . . Part Schematics Acquired 1 | . 1 Parts Built . | . . Matter . | . . Time . | . . Total Part Build Rating . | . . Parts Repaired . | . . Time . | . . Parts Recycled . | . . Recycled Matter . | . . Retrieved Matter . | . . Retrieved Components . | . . Parts Scanalyzed . | . . Part Schematics Acquired . | . . Parts Damaged . | . . Bothacking | -11 -10 ------------ Run | Scr Mat Used RIF Installer . | . . Robots Hacked . | . . Non-combat . | . . Combat . | . . Robot Hacks Applied . | . . Relay Couplers Released . | . . Robots Rewired . | . . Allies Hacked . | . . Hacks Repelled . | . . Allies | -11 -10 -------- Run | Scr Mat Total Allies . | . . Largest Group . | . . Highest-Rated Group . | . . Highest-Rated Ally . | . . Total Orders . | . . Ally Attacks . | . . Total Damage . | . . Kills . | . . Allies Corrupted . | . . Allies Melted . | . . Intel | -11 -10 ------- Run | Scr Mat Robot Analysis Total . | . . Derelict Logs Recovered . | . . Drone Launches . | . . Drone Recoveries . | . . Exploration | -11 -10 ------------- Run | Scr Mat Turns Passed 668 | 73 595 Spaces Moved 299 | 40 259 Core 2 | 2 . Treads 297 | 38 259 Legs . | . . Wheels . | . . Hover . | . . Flight . | . . Fastest Speed 50 | 50 160 Average Speed 159 | 154 160 Slowest Speed 160 | 160 160 Overloaded Moves . | . . Propulsion Burnouts . | . . Robots Hopped . | . . Cave-ins Triggered . | . . Exploration Rate (%) 26 | 3 49 Regions Visited 1 Branch Regions . Pre-discovered Areas . | . . Known Exits Taken . | . . Unknown Exits Taken 1 | 1 . Scrap Searched . | . . Spaces Dug . | . . Terrain Destroyed 36 | . 36 Melee . | . . Projectile . | . . AOE 36 | . 36 Terrain Rammed . | . . Walls Destroyed . | . . Machines Disabled . | . . Actions | -11 -10 --------- Run | Scr Mat Total 410 | 48 362 Wait 53 | . 53 Move 298 | 39 259 Hop . | . . Pick Up 6 | 2 4 Fast Attach 6 | 6 . Attach 1 | . 1 Detach . | . . Swap 1 | 1 . Drop . | . . Fire 45 | . 45 Melee . | . . Ram . | . . Kick . | . . Crush . | . . Escape Stasis . | . . Rewire . | . . Trap . | . . Miscellaneous . | . . Route ------- -11/Scrapyard -10/Materials (discovered 2 exits: [*Mat] / [*Min]) History --------- Turn | Location | Event 21 | -11/Scrapyard | Discovered new exit (range 15) 74 | -11/Scrapyard | Entered Materials 206 | -10/Materials | Discovered new exit (range 5) 303 | -10/Materials | Build established: Mutant 311 | -10/Materials | Discovered new exit (range 11) 387 | -10/Materials | Core integrity fell below 50% 472 | -10/Materials | Core integrity fell below 20% 558 | -10/Materials | Lost 3 parts (1n2w) 669 | -10/Materials | Destroyed by G-34 Mercenary with Small Laser Last Messages --------------- 00527_ EM Pulse Gun tumbles out of recycling unit. 00527_ K-01 Serf collects debris. 00528_ Acquired 17 matter. 00530_ K-01 Serf collects debris. 00531_ Acquired 48 matter. 00534_ K-01 Serf collects debris. 00538_ U-05 Engineer lays Concrete. 00541_ U-05 Engineer builds a Wall. 00541_ K-01 Serf collects debris. 00545_ U-05 Engineer lays Concrete. 00545_ K-01 Serf collects debris. 00546_ U-05 Engineer lays Concrete. 00547_ U-05 Engineer builds a Door. 00548_ K-01 Serf collects debris. 00551_ U-05 Engineer lays Concrete. 00562_ G-34 Mercenary destroyed. 00562_ K-01 Serf collects debris. 00563_ U-05 Engineer lays Concrete. 00580_ Acquired 27 matter. 00621_ K-01 Serf collects debris. Map ----- +----------------------------------------------------+ | | | | | | | | | | | | | | | | | | | | | | | ????????????#############????????????????????????? | | ????????????# #????????????????????????? | | ????????????# #????????????????????????? | | ????????????# #????????????????????????? | | ????????????# #???????????##########???? | | ????????????# #???????????# #???? | | ?????????????? #???????????# #???? | | ???????????????? #???????????# """ #???? | | ???????###########+###########??????# """""#???? | | ???????# # #??????# """""#???? | | ???????# < # """ =#??????# """""#???? | | ???????# # """ #??????# """ #???? | | ?????############## # """ [#??????# #???? | | ?????? !!! # # #??????# #???? | | ???????? """ !!! # # @ ! #??#########+######## | | ??????? """ !! + ##g######## | | ?????# """ # = | | ?????# ! ]# %########### " | | ?????########"""#"# !#?????????# T """ ####### | | ??????????####""""# #########?# " """ #?????? | | ??????????## # # #?# """ #?????? | | ??????????## # # T #?# ####### | | ??????????## + + #?# // # | | ??????????## # #####+##### / # | | ??????????## # #?# ##" / # """ | | ???????????# # #?# * ##T ![ # """ | | ???????????###""""# #?# T ##" ![ # """ | | ?????????????###### #?# = ### [[ # | | ??##########??????# #?# #?# ###+### | | ??# #??????# #?## ##?# | | ??# """ #??????# #??# #??# #### | | ??# """ ######## #??# #??# #??# | | ??# """ # # #??# #??# ####+###### | | ??# # ""# #?## #### # # | | ??# =% # ! # #?# """# #????????????? | | ??# "T" # [ =#* #?# "# #????????????? | | ??# "" = = # + = #?# !"# #????????????? | | ??# ==%# = #== #?# < ""# #????????????? | | ?#######""!###/#"## #?# |"# #????????????? | +----------------------------------------------------+ Best States ------------- Heat Dissipation 25 Energy Generation 10 Energy Capacity 250 Matter Stores 300 Matter Capacity 300 Sight Range 16 Terrain Scan Density 10 Evasion (%) 40 Recoil Reduction 2 Item Schematics ----------------- Hcp. Storage Unit | -10/Materials | Hacked Robot Schematics ------------------ None Fabricated ------------ Nothing Alien Tech Used ----------------- None Achievements -------------- None Challenges ------------ None Game ------ Seed FactoryFlyingClaw Manual? 0 Play Time 00:05:42 Cumulative 150.5 hours Start 2020.12.18 @ 21:58:30 End 2020.12.18 @ 22:05:09 Sessions 1 Manual Loads 0 Difficulty Rogue Special Mode None Game No. 129 Rogue 35 Adventurer 52 Explorer 42 Win Type - Total 8 Types 8/0/0/0/0/0/0/0/0 Lore% 59 Gallery% 74 Achievement% 57 Wizard Run 0 Options --------- ASCII 0 Keyboard 0 Movement Numpad Keybinds 0 Fullscreen 2 Font 18/TerminusBold Map View 76x50 Tactical HUD 1 Map Filters NONE Filters NONE Steam 1 RUN: 7a23f8a5-4502-4b0f-8e57-f1b236f5ee7a